Workbook

Sheet Sheet1
A1: 劳保用品采购项目清单
A2: 序号 | B2: 物品分类 | C2: 品牌 | D2: 产品名称 | E2: 规格 | F2: 单位 | G2: 基准价 | H2: 年使用量 | I2: 报价
A3: 1 | B3: 工作服 | D3: 夏季工作服 | E3: 上衣+裤子+帽子，加反光条，绣企业 Logo,面料65%棉，35%涤 | F3: 套 | G3: 81.76 | H3: =30+300+85+50+180+130+50+100 -> 925
D4: 春秋季工作服 | E4: 上衣+裤子+帽子，加反光条，绣企业 Logo,面料65%棉，35%涤 | F4: 套 | G4: 91.61 | H4: =30+450+90+50+180+180+50+100 -> 1130
D5: 冬季工作服 | E5: 上衣，加防风袖，帽子，活里活 面加反光条，绣企业Logo,面料 65%棉，35%涤，填充物为丝绵 | F5: 件 | G5: 145.78 | H5: =30+260+80+50+180+140+50+100 -> 890
A6: 2 | B6: 手套 | D6: 808-4长臂手套 | E6: PVC,接袖松紧口 | F6: 双 | G6: 6.40 | H6: =50+3500+500+600+2016+600+1100 -> 8366
D7: 胶手套(单) | E7: 13针 | F7: 双 | G7: 2.27 | H7: =260+1500+400+350+820+828+300+770 -> 5228
D8: 胶手套(棉) | E8: 7针，乳胶，内衬拉毛 | F8: 双 | G8: 4.93 | H8: =200+2200+400+100+820+828+300+770 -> 5618
D9: 棉线手套 | E9: 10针，内棉 | F9: 双 | G9: 0.99 | H9: =200 -> 200
D10: 耐酸碱手套 | E10: P V C 接 袖 | F10: 双 | G10: 11.82 | H10: =100+20 -> 120
D11: 乳胶手套 | E11: 天然乳胶，22-24cm | F11: 双 | G11: 3.94 | H11: =100+1200 -> 1300
D12: 橡胶手套 | E12: 10盒/箱 | F12: 盒 | G12: 24.63 | H12: =2500+900+260+200+1320 -> 5180
D13: 电焊手套 | E13: 全皮，4# | F13: 双 | G13: 9.85 | H13: =4+50+24+2+16+10+4+70+10 -> 190
D14: 保暖手套 | E14: L码 | F14: 双 | G14: 14.78
D15: 防切割撕裂手套 | E15: 高密度聚乙烯纤维 | F15: 双 | G15: 9.85 | H15: 12.00
D16: 一次手套 | E16: 丁晴手套 | F16: 盒 | G16: 24.63 | H16: =120 -> 120
A17: 3 | B17: 口罩 | D17: 一次性防护口罩 | E17: 17.5cm*9.5cm | F17: 盒 | G17: 7.88 | H17: =540+5000+600+750+100+2000+1800+600+1500 -> 12890
D18: 一次性活性炭口 | E18: 175mmx95mm | F18: 盒 | H18: =12 -> 12
D19: 防尘口罩 | H19: 5400
A20: 4 | B20: 床品 | D20: 床品三件套 | E20: 单人床单、被套、枕套，颜色统 一，匹马棉 | F20: 套 | G20: 49.25 | H20: =30+320+130+50+180+180+50+15+100 -> 1055
D21: 床品五件套 | E21: 双人床单、单人被套*2、枕套*2、 颜色统一，匹马棉 | F21: 套 | G21: 98.50 | H21: =7+50 -> 57
A22: 5 | B22: 门帘 | D22: 单门帘 | E22: 纱网、磁吸，双层纱网 | F22: 平米 | G22: 64.03 | H22: =6+51+16 -> 73
D23: 棉门帘 | E23: 螺丝固定、磁铁吸附，帆布，填 充物为再生棉 | F23: 平米 | G23: 64.03 | H23: =55+30+16 -> 101
A24: 6 | B24: 冬季防护 | D24: 军大衣 | E24: 加大版，面料80%棉，20%涤，填 充物为棉花 | F24: 件 | G24: 98.50 | H24: =20+5+7+5+5 -> 42
D25: 棉线帽子 | E25: 50cm-62cm,雪粒绒 | F25: 顶 | G25: 9.85 | H25: =30+220+80+50+180+148+50+15+100 -> 873
D26: 耳帽 | E26: 加绒加厚雪粒绒 | F26: 副 | G26: 3.94 | H26: =30+220+50 -> 300
D27: 围脖 | E27: 加绒加厚 雪粒绒 | F27: 个 | G27: 9.85 | H27: =30+220+80+50+180+148+100 -> 808
D28: 护膝 | E28: 全包pu革，内衬人造毛 | F28: 副 | G28: 29.55 | H28: =13+30+6+7+20 -> 76
D29: 电动车棉把手 | E29: 10cm-11cm,pu革，内衬人造毛 | F29: 副 | G29: 19.70 | H29: =12+30+6+5+8+8 -> 69
D30: 毛毡袜 | E30: 羊毛材质 | F30: 双 | G30: 9.85 | H30: =200+30 -> 230
D31: 毛线脖套 | E31: 加绒加厚 | F31: 个 | G31: 9.85 | H31: =220+50+50+15 -> 335
A32: 7 | B32: 防护 | D32: 蓝大褂 | E32: 涤卡，加长加大 | F32: 件 | G32: 29.55 | H32: =20+150+20+214+50+40+90+200+20 -> 804
D33: 雨衣 | E33: 加反光条，加大版，面料针织布 | F33: 件 | G33: 37.43 | H33: =5+5+40+10+30+80+25 -> 195
D34: 皮护衣 | E34: PU革，倒穿衣 | F34: 件 | G34: 23.64 | H34: =10+10+10+40+5+50+20 -> 145
D35: 皮围裙 | E35: PVC,穿戴式 | F35: 条 | G35: 19.70 | H35: =200+60+270+200+40+120+350 -> 1240
D36: 一次性帽子 | E36: 无纺布，20g | F36: 包 | G36: 25.61 | H36: =5+100+60+120+50+30+85+80+300+6 -> 836
D37: 大毛巾 | E37: 割绒擦车巾 | F37: 条 | G37: 3.94 | H37: =5+30+30+50 -> 115
D38: 毛巾 | E38: 竹纤维，300*300mm | F38: 条 | G38: 3.94 | H38: =50+50+60+100+800+50+50 -> 1160
D39: 浴巾 | E39: 加大，材质：棉 | F39: 条 | G39: 24.63 | H39: =50+60+50+50+20+50 -> 280
D40: 枕巾 | E40: 6层纱，材质：棉 | F40: 条 | G40: 9.85 | H40: =100+15+50+180+180+7+50+130+320+30 -> 1062
D41: 大白卷 | E41: 双联包 | F41: 提 | G41: 19.70 | H41: =100+18+120+100+12+60+350 -> 760
D42: 白大褂 | E42: 医用，M码 | F42: 件 | G42: 64.03 | H42: =24+10+10+50 -> 94
D43: 防护面罩 | E43: 医用，透明 | F43: 个 | G43: 4.93 | H43: =50+40 -> 90
D44: 护目镜 | E44: 防雾、标准款 | F44: 个 | G44: 4.93 | H44: =50+25+25+24+30+100+22 -> 276
D45: 一次性鞋套 | E45: 50双/包，每包500g | F45: 包 | G45: 73.88 | H45: =20+24+50+22+5+40+50+10 -> 221
A46: 8 | B46: 安全 | D46: 反光马甲 | E46: 多兜反光马甲，高亮度 | F46: 件 | G46: 9.85 | H46: =15+35+20+40+10+100 -> 220
D47: 反光弹力带 | E47: 加密高亮，5cm | F47: 条 | G47: 9.85 | H47: =5+255+150+402+180+50+120+630+80 -> 1872
D48: 安全帽 | E48: 国标，玻璃钢 | F48: 顶 | G48: 24.63 | H48: =20+20+30+5+50 -> 125
D49: 反光胶带 | E49: 红白拼色、3M | F49: 卷 | G49: 49.25 | H49: =12+5+12+100+5+50+20 -> 204
A50: 9 | B50: 洗护 | D50: 洗衣液 | E50: 5L/袋 | F50: 瓶 | G50: 9.85 | H50: =96+20 -> 116
D51: 清洁球 | E51: 6个/包 | F51: 包 | G51: 2.96 | H51: =28+20+35+5+100+36+50+25 -> 299
D52: 洗衣粉 | E52: 12袋/包 | F52: 袋 | G52: 3.94 | H52: =1330+360+1440+129612+2+4500 -> 137244
D53: 洗洁精 | E53: 10kg | F53: 桶 | G53: 49.25 | H53: =12+3+3+12+50+10+12+12 -> 114
D54: 尘推油 | E54: 超宝3 . 8L | F54: 桶 | G54: 64.03 | H54: 20
D55: 洁厕液 | E55: 500g/瓶 | F55: 瓶 | G55: 9.85 | H55: =24+36+24+100 -> 184
D56: 洗衣皂 | E56: 202g | F56: 块 | G56: 3.94 | H56: 30
A57: 10 | B57: 清洁工具 | D57: 芨芨扫帚 | E57: 植物纤维，耐磨损 | F57: 把 | G57: 12.81 | H57: =300+96+360+500+150+100+500+250 -> 2256
D58: 高粱笤帚 | E58: 长80cm,高粱秸秆制成 | F58: 把 | G58: 9.85 | H58: =15+20+20+15+10 -> 80
D59: 套扫 | E59: 塑料、尼龙丝、PBT丝、PP丝和 PET丝 | F59: 套 | G59: 14.78 | H59: =15+40+10+20+10+30+20+26 -> 171
D60: 拖把 | E60: 木质长把，棉质把头 | F60: 个 | G60: 9.85 | H60: =15+48+30+20+80+5+30+30+80 -> 338
D61: 喷壶 | E61: 500ml | F61: 个 | G61: 4.93 | H61: =12+8+5+12+10+20+50 -> 117
D62: 喷壶 | E62: 5L | F62: 个 | G62: 24.63 | H62: =12+12+12+10+10+20 -> 76
D63: 黑色长杆洗瓶刷 | E63: 海绵材质 | F63: 个 | G63: 7.88
D64: 短柄洗车拖把 | E64: 纤维、海绵 | F64: 把 | G64: 19.70 | H64: =5+30 -> 35
D65: 滤水拖把 | E65: 杰特2系列，拖头拖桶分离式 | F65: 个 | G65: 49.25
D66: 硅胶地面刮水器 | E66: 硅胶、50cm | F66: 个 | G66: 34.48 | H66: =30+40+20 -> 90
D67: 硬毛短刷 | E67: 硬毛、20cm*6.3cm*4cm | F67: 把 | G67: 4.93 | H67: =10+24 -> 34
D68: 马桶刷子 | E68: PET+PP+不锈钢 | F68: 个 | G68: 5.91 | H68: =20+12+24+20+50 -> 126
D69: 榨水车 | E69: 黄色24L | F69: 个 | G69: 98.50 | H69: =2+5+2+2 -> 11
D70: 硬毛刷 | E70: 长杆 | F70: 个 | G70: 19.70 | H70: =50+5+40+24 -> 119
D71: 拖把 | E71: 洗车专用 | F71: 把 | G71: 19.70 | H71: =50+5+60+20+100+150 -> 385
D72: 洗车刷子 | E72: 不锈钢把，可伸缩 | F72: 把 | G72: 19.70 | H72: =5 -> 5
D73: 马桶垫 | E73: PVC材质 | F73: 个 | G73: 7.88
D74: 皮搋子 | E74: 橡胶材质 | F74: 个 | G74: 7.88 | H74: 6
D75: 黑色塑料水桶 | E75: 25CM*30CM | F75: 个 | G75: 14
D76: 大堂尘推 | E76: 尺寸：42"x 110CM1 杆长：1.2M1 尘推宽度：18CM1 尘推毛长：8CM | F76: 把 | G76: 36.5 | H76: =120+12+40+100 -> 272
D77: 大堂尘推 | E77: 尺寸：36"x90CM1 杆长：1.2M1 尘推宽度：18CM1 尘推毛长：8CM | F77: 把 | G77: 34 | H77: =5+50+48+60+40+150 -> 353
D78: 长柄地板刷 | E78: 刮刷铲三用 | F78: 个 | G78: 33.5
A79: 11 | B79: 盒抽 | E79: 90抽，四层加厚 | F79: 盒 | G79: 4.93
A80: 12 | B80: 速开壶 | E80: LL-8825,1850W | F80: 个 | G80: 98.50 | H80: 5
A81: 13 | B81: 擦拭纸 | E81: 200mm*200mm | F81: 件 | G81: 93.58 | H81: =12+12+30+50+50 -> 154
A82: 14 | B82: 保鲜膜 | E82: 宽50cm | F82: 卷 | G82: 39.40 | H82: =2+36 -> 38
A83: 15 | B83: 剪刀 | E83: 不锈钢、塑料 | F83: 个 | G83: 9.85 | H83: =100+4+60+100+50+2+45+100+1 -> 462
A84: 16 | B84: 茶叶 | C84: 碧螺春 | E84: 二 | F84: 盒 | G84: 88.65 | H84: =10+8 -> 18
A85: 17 | B85: 粘鼠板 | E85: 长21.5CM宽28CM 61529461 | F85: 个 | G85: 2.96 | H85: =100+600+20+10040+5+20+50+200 -> 11035
A86: 18 | B86: 草酸 | E86: 500ml/瓶 | F86: 瓶 | G86: 5.91
A87: 19 | B87: 粘蝇板 | E87: 5个/包 | F87: 包 | G87: 4.93 | H87: =100+200+100+300+100+400+150 -> 1350
A88: 20 | B88: 蝇香 | E88: 30支/盒 | F88: 节 | G88: 2.8 | H88: =2+5+200+150 -> 357
